bitfinex-derivatives/quotes_SOLF0:USTF0_20250830
["timestamp","ask_amount","ask_price","bid_price","bid_amount"]
[1756587285560,7.41,200.42,200.4,7.75]
[1756587285760,7.41,200.42,200.41,4.62725366]
[1756587293062,7.41,200.42,200.37,2.00992957]
[1756587293565,7.41,200.42,200.38,8.1]
[1756587293765,24.54,200.41,200.37,2.00992957]
[1756587293961,24.54,200.41,200.38,8.1]
[1756587294167,31.95,200.41,200.37,2.00992957]
[1756587294368,31.95,200.41,200.38,8.1]
[1756587294569,31.95,200.41,200.37,2.00992957]
[1756587294762,31.95,200.41,200.38,8.1]
[1756587295269,26.54992957,200.41,200.31,5.60266618]
[1756587295470,7.41,200.4,200.34,10.10992957]
[1756587295671,7.41,200.38,200.35,8.1]
[1756587296667,7.41,200.38,200.34,2.00992957]
[1756587296868,7.41,200.38,200.35,8.1]
[1756587297167,7.41,200.38,200.34,2.00992957]
[1756587297363,7.41,200.38,200.35,8.1]
[1756587297569,7.41,200.38,200.34,2.00992957]
[1756587297764,24.54,200.41,200.35,8.1]
[1756587297969,2.00992957,200.42,200.37,8.1]
[1756587298169,2.00992957,200.44,200.39,8.1]
[1756587298471,7.41,200.46,200.27,30.3]
[1756587298472,28.28,200.45,200.4,2.00992957]
[1756587298666,7.41,200.45,200.41,8.1]
[1756587298873,7.41,200.49,200.43,8.1]
[1756587299172,7.41,200.46,200.43,8.1]
[1756587299668,2.00992957,200.44,200.39,8.1]
[1756587299971,7.41,200.43,200.39,8.1]
[1756587300572,2.00992957,200.44,200.39,8.1]
[1756587301371,7.41,200.43,200.39,8.1]
[1756587301668,2.00992957,200.44,200.39,8.1]
[1756587302373,7.41,200.43,200.39,8.1]
[1756587302771,2.00992957,200.44,200.39,8.1]
[1756587303567,7.41,200.43,200.39,8.1]
[1756587304575,2.00992957,200.44,200.39,8.1]
[1756587304775,9.41992957,200.44,200.38,8.1]
[1756587305279,2.00992957,200.44,200.4,8.1]
[1756587305480,9.41992957,200.44,200.4,8.1]
[1756587305679,9.41992957,200.44,200.39,2.00992957]
[1756587306179,7.41,200.43,200.4,8.1]
[1756587307777,7.5,200.46,200.4,7.67]
[1756587307977,2.00992957,200.45,200.39,2.00992957]
[1756587308174,2.00992957,200.45,200.4,7.67]
[1756587308583,9.50992957,200.45,200.35,7.67]
[1756587308782,9.50992957,200.45,200.39,9.67992957]
[1756587309585,2.00992957,200.45,200.39,2.00992957]
[1756587309786,9.50992957,200.45,200.39,9.67992957]
[1756587310685,73.98,200.47,200.39,9.67992957]
[1756587310686,2.00992957,200.43,200.39,7.67]
[1756587310885,7.5,200.42,200.37,2.00992957]
[1756587311086,2.00992957,200.41,200.37,7.67]
[1756587311288,7.5,200.4,200.37,7.67]
[1756587312889,7.5,200.4,200.35,2.00992957]
[1756587313190,7.5,200.4,200.36,7.67]
[1756587313390,7.5,200.4,200.35,2.00992957]
[1756587314488,7.5,200.4,200.36,7.67]
[1756587315290,9.50992957,200.41,200.35,9.67992957]
[1756587317995,9.50992957,200.41,200.35,2.00992957]
[1756587318197,2.00992957,200.43,200.37,2.00992957]
[1756587318499,2.00992957,200.43,200.38,7.67]
[1756587318890,2.00992957,200.43,200.37,2.00992957]
[1756587319292,2.00992957,200.43,200.38,7.67]
[1756587319494,2.00992957,200.43,200.37,2.00992957]
[1756587320393,2.00992957,200.43,200.38,7.67]
[1756587320799,2.00992957,200.43,200.37,2.00992957]
[1756587321299,2.00992957,200.43,200.38,7.67]
[1756587321501,2.00992957,200.43,200.37,2.00992957]
[1756587321699,9.50992957,200.43,200.37,7.67]
[1756587321902,9.50992957,200.43,200.37,9.67992957]
[1756587322702,2.00992957,200.43,200.37,9.67992957]
[1756587322897,7.5,200.42,200.37,9.67992957]
[1756587323198,9.50992957,200.43,200.37,9.67992957]
[1756587323497,7.5,200.43,200.37,9.67992957]
[1756587327305,7.5,200.43,200.37,2.00992957]
[1756587328307,7.5,200.43,200.38,7.67]
[1756587328503,7.5,200.43,200.37,2.00992957]
[1756587329104,7.5,200.43,200.38,7.67]
[1756587329608,7.5,200.43,200.37,2.00992957]
[1756587329802,7.5,200.43,200.38,7.67]
[1756587330007,7.5,200.43,200.37,2.00992957]
[1756587330509,7.5,200.43,200.38,7.67]
[1756587331112,7.5,200.43,200.37,2.00992957]
[1756587331312,7.5,200.43,200.38,7.67]
[1756587331611,7.5,200.43,200.37,2.00992957]
[1756587332012,7.5,200.43,200.38,7.67]
[1756587332212,7.5,200.44,200.38,7.67]
[1756587335216,2.00992957,200.43,200.38,7.67]
[1756587336911,7.5,200.42,200.38,7.67]
[1756587337107,2.00992957,200.43,200.38,7.67]
[1756587338020,2.00992957,200.43,200.38,7.48]
[1756587338316,9.50992957,200.43,200.37,9.48992957]
[1756587338819,2.00992957,200.43,200.37,7.48]
[1756587339019,7.5,200.4,200.35,7.48]
[1756587339213,7.5,200.4,200.34,9.48992957]
[1756587340218,7.5,200.4,200.34,2.00992957]
[1756587340421,9.50992957,200.41,200.35,7.48]
[1756587343925,2.00992957,200.39,200.31,5.60266618]
[1756587344118,7.5,200.38,200.32,9.48992957]
[1756587344819,7.5,200.38,200.32,7.48]
[1756587345019,7.5,200.35,200.3,2.00992957]
[1756587345223,7.5,200.35,200.31,7.48]
[1756587345521,7.5,200.35,200.3,2.00992957]
[1756587345724,7.5,200.35,200.31,7.48]
[1756587345923,7.5,200.35,200.3,2.00992957]
[1756587346125,7.5,200.35,200.31,7.48]
[1756587346726,7.5,200.35,200.3,2.00992957]
[1756587347120,7.5,200.35,200.31,7.48]
[1756587347919,7.5,200.35,200.3,2.00992957]
[1756587348119,7.5,200.35,200.31,7.48]
[1756587348326,7.5,200.35,200.3,2.00992957]
[1756587348526,7.5,200.35,200.31,7.48]
[1756587348720,7.5,200.35,200.33,7.48]
[1756587353030,2.00992957,200.39,200.32,2.00992957]
[1756587353231,9.50992957,200.41,200.35,7.48]
[1756587355025,7.5,200.41,200.36,2.00992957]
[1756587355430,2.00992957,200.43,200.36,2.00992957]
[1756587355631,7.5,200.42,200.36,9.48992957]
[1756587360737,2.00992957,200.43,200.36,9.48992957]
[1756587360938,7.5,200.42,200.36,9.48992957]
[1756587371254,7.62,200.4,200.35,2.00992957]
[1756587371449,2.00992957,200.41,200.35,2.00992957]
[1756587371753,7.62,200.4,200.35,9.75992957]
[1756587372152,7.62,200.39,200.36,7.75]
[1756587373256,7.62,200.43,200.37,2.00992957]
[1756587373447,7.62,200.43,200.4,9.75992957]
[1756587374153,2.00992957,200.46,200.4,9.75992957]
[1756587374357,7.62,200.45,200.4,7.75]
[1756587375354,2.00992957,200.46,200.4,7.75]
[1756587375550,7.62,200.45,200.4,7.75]
[1756587376252,2.00992957,200.46,200.4,7.75]
[1756587376455,7.62,200.45,200.4,7.75]
[1756587377252,2.00992957,200.46,200.4,7.75]
[1756587377855,7.62,200.45,200.4,7.75]
[1756587378158,2.00992957,200.46,200.4,7.75]
[1756587378858,7.62,200.45,200.4,7.75]
[1756587379154,2.00992957,200.46,200.4,7.75]
[1756587379550,7.62,200.45,200.4,7.75]
[1756587379755,2.00992957,200.46,200.4,7.75]
[1756587379956,7.62,200.45,200.4,7.75]
[1756587380156,2.00992957,200.46,200.4,7.75]
[1756587380655,7.62,200.45,200.4,7.75]
[1756587381055,2.00992957,200.46,200.4,7.75]
[1756587381653,7.62,200.45,200.39,9.75992957]
[1756587384761,7.62,200.45,200.39,7.75]
[1756587384962,7.62,200.45,200.39,9.75992957]
[1756587389666,7.62,200.45,200.39,7.75]
[1756587389867,7.62,200.45,200.39,9.75992957]
[1756587391970,7.62,200.43,200.39,7.75]
[1756587392170,2.00992957,200.42,200.39,7.75]
[1756587392370,74.22,200.47,200.34,7.75]
[1756587392371,9.62992957,200.4,200.34,7.75]
[1756587392668,7.62,200.37,200.31,2.00992957]
[1756587392877,9.62992957,200.36,200.32,7.75]
[1756587393364,9.62992957,200.36,200.31,2.00992957]
[1756587393569,9.62992957,200.36,200.32,7.75]
[1756587393767,9.62992957,200.36,200.31,2.00992957]
[1756587394070,9.62992957,200.36,200.32,7.75]
[1756587394366,9.62992957,200.36,200.31,2.00992957]
[1756587394760,9.62992957,200.36,200.32,7.75]
[1756587395169,9.62992957,200.36,200.31,2.00992957]
[1756587395369,9.62992957,200.36,200.32,7.75]
[1756587395770,9.62992957,200.36,200.31,2.00992957]
[1756587395970,9.62992957,200.36,200.32,7.75]
[1756587396170,9.62992957,200.36,200.31,2.00992957]
[1756587396766,9.62992957,200.36,200.32,7.75]
[1756587397071,2.00992957,200.38,200.31,2.00992957]
[1756587397273,9.62992957,200.38,200.32,7.75]
[1756587397972,9.62992957,200.38,200.33,2.00992957]
[1756587398173,7.62,200.38,200.36,7.48]
[1756587400471,2.00992957,200.4,200.35,2.00992957]
[1756587400671,7.44,200.39,200.33,9.48992957]
[1756587403277,7.44,200.39,200.34,7.48]
[1756587403679,7.44,200.39,200.33,2.00992957]
[1756587403977,7.44,200.39,200.34,7.48]
[1756587404180,9.44992957,200.4,200.34,7.48]
[1756587405378,24.38992957,200.43,200.37,2.00992957]
[1756587405681,2.00992957,200.44,200.38,7.48]
[1756587405876,2.00992957,200.44,200.37,2.00992957]
[1756587406381,7.44,200.42,200.39,7.48]
[1756587406576,7.44,200.42,200.38,7.48]
[1756587406773,2.00992957,200.46,200.4,7.48]
[1756587407178,7.44,200.45,200.39,9.48992957]
[1756587407374,7.44,200.45,200.39,7.48]
[1756587427292,9.44781664,200.45,200.39,9.48781664]
[1756587431593,9.44781664,200.45,200.4,7.7]
[1756587432684,9.44781664,200.45,200.39,2.00781664]
[1756587432991,9.44781664,200.45,200.4,7.7]
[1756587433388,9.44781664,200.45,200.39,2.00781664]
[1756587433584,9.44781664,200.45,200.4,7.7]
[1756587433786,9.44781664,200.45,200.39,2.00781664]
[1756587434286,2.00781664,200.45,200.39,2.00781664]
[1756587434592,2.00781664,200.45,200.4,7.7]
[1756587434894,2.00781664,200.45,200.39,2.00781664]
[1756587436187,2.00781664,200.45,200.4,7.7]
[1756587436583,2.00781664,200.45,200.39,2.00781664]
[1756587436786,9.53781664,200.45,200.4,7.7]
[1756587436989,2.00781664,200.44,200.36,2.00781664]
[1756587437187,7.53,200.46,200.39,7.7]
[1756587437395,9.53781664,200.46,200.39,7.7]
[1756587437994,2.00781664,200.44,200.39,7.7]
[1756587438190,7.53,200.43,200.38,9.70781664]
[1756587438396,7.53,200.42,200.39,7.7]
[1756587438790,7.53,200.42,200.38,2.00781664]
[1756587439392,7.53,200.42,200.39,7.7]
[1756587440496,2.00781664,200.44,200.39,7.7]
[1756587440693,7.53,200.43,200.39,7.7]
[1756587440894,7.53,200.43,200.38,2.00781664]
[1756587441090,2.00781664,200.44,200.39,7.7]
[1756587441295,7.53,200.43,200.38,2.00781664]
[1756587441497,2.00781664,200.44,200.38,2.00781664]
[1756587441898,2.00781664,200.44,200.39,7.7]
[1756587443094,7.53,200.43,200.39,7.7]
[1756587443296,2.00781664,200.44,200.39,7.7]
[1756587443497,2.00781664,200.44,200.38,2.00781664]
[1756587443697,7.53,200.42,200.39,7.7]
[1756587445606,7.53,200.43,200.39,7.7]
[1756587446007,2.00781664,200.44,200.39,7.7]
[1756587446404,7.53,200.43,200.39,7.7]
[1756587446909,2.00781664,200.44,200.38,2.00781664]
[1756587447512,7.53,200.42,200.39,7.7]
[1756587448511,7.53,200.42,200.38,2.00781664]
[1756587448705,2.00781664,200.44,200.39,7.7]
[1756587448912,7.53,200.43,200.39,7.7]
[1756587449410,2.00781664,200.44,200.39,7.7]
[1756587449607,7.53,200.43,200.39,7.7]
[1756587450009,2.00781664,200.44,200.39,7.7]
[1756587450508,7.53,200.43,200.39,7.7]
[1756587450702,2.00781664,200.44,200.39,7.7]
[1756587451007,7.53,200.43,200.38,9.70781664]
[1756587451203,2.00781664,200.44,200.38,2.00781664]
[1756587451204,7.53,200.42,200.38,2.00781664]
[1756587451407,7.53,200.43,200.38,2.00781664]
[1756587451801,7.53,200.41,200.36,7.7]
[1756587452207,7.53,200.41,200.36,9.70781664]
[1756587452410,2.00781664,200.42,200.37,7.7]
[1756587452411,7.53,200.4,200.37,7.7]
[1756587453213,7.53,200.4,200.36,2.00781664]
[1756587453705,7.53,200.4,200.34,7.7]
[1756587453911,7.53,200.4,200.37,7.7]
[1756587454114,7.53,200.4,200.36,2.00781664]
[1756587454510,7.53,200.4,200.37,7.7]
[1756587455013,7.53,200.4,200.36,2.00781664]
[1756587455213,7.53,200.4,200.37,7.7]
[1756587457515,2.00781664,200.43,200.38,2.00781664]
[1756587457710,9.52781664,200.43,200.38,2.00781664]
[1756587458118,9.52781664,200.43,200.39,7.67]
[1756587458620,9.52781664,200.43,200.38,2.00781664]
[1756587459119,9.52781664,200.43,200.39,7.67]
[1756587459818,9.52781664,200.43,200.38,2.00781664]
[1756587460616,9.52781664,200.43,200.39,7.67]
[1756587460925,9.52781664,200.43,200.38,2.00781664]
[1756587462018,7.52,200.42,200.38,2.00781664]
[1756587462415,7.52,200.42,200.39,7.67]
[1756587463517,7.52,200.42,200.36,9.67781664]
[1756587463913,7.52,200.42,200.36,7.67]
[1756587464118,2.00781664,200.41,200.36,7.67]
[1756587464519,7.52,200.39,200.37,7.67]
[1756587468122,2.00781664,200.41,200.35,2.00781664]
[1756587468319,7.52,200.4,200.35,2.00781664]
[1756587468924,7.52,200.4,200.36,7.67]
[1756587469325,2.00781664,200.41,200.36,7.67]
[1756587470222,9.52781664,200.41,200.36,7.67]
[1756587470421,9.52781664,200.41,200.35,2.00781664]
[1756587470422,7.52,200.39,200.35,2.00781664]
[1756587470925,7.52,200.39,200.36,7.67]
[1756587473031,7.52,200.39,200.35,2.00781664]
[1756587473830,7.52,200.39,200.36,7.67]
[1756587475027,9.52781664,200.43,200.38,7.67]
[1756587475222,7.52,200.43,200.38,7.67]
[1756587475533,7.52,200.42,200.37,2.00781664]
[1756587475726,7.52,200.42,200.38,7.67]
[1756587475926,7.52,200.42,200.37,2.00781664]
[1756587476224,2.00781664,200.44,200.37,2.00781664]
[1756587476425,7.52,200.42,200.39,7.67]
[1756587476624,2.00781664,200.44,200.39,7.67]
[1756587477531,7.52,200.43,200.39,7.67]
[1756587477732,2.00781664,200.44,200.39,7.67]
[1756587478128,7.52,200.43,200.39,7.67]
[1756587478532,2.00781664,200.44,200.39,7.67]
[1756587478930,9.52781664,200.44,200.38,7.67]
[1756587498238,9.52781664,200.44,200.34,5.60266618]
[1756587498442,7.7,200.46,200.34,7.69]
[1756587498740,2.00781664,200.4,200.33,2.00781664]
[1756587498941,9.70781664,200.4,200.34,7.69]
[1756587499344,9.70781664,200.4,200.34,9.69781664]
[1756587502542,7.7,200.39,200.34,2.00781664]
[1756587502743,7.7,200.37,200.31,69.19642867]
[1756587502947,7.7,200.37,200.31,65.60157913]
[1756587507747,7.7,200.37,200.31,57.91157913]
[1756587508142,7.7,200.37,200.32,7.69]
[1756587509052,2.00781664,200.41,200.36,7.69]
[1756587509246,9.70781664,200.41,200.36,7.69]
[1756587509452,7.7,200.4,200.36,6.43874703]
[1756587509651,2.00781664,200.41,200.36,6.43874703]
[1756587509852,7.7,200.4,200.36,6.43874703]
[1756587510252,7.7,200.4,200.35,2.00781664]
[1756587512048,7.7,200.4,200.36,7.69]
[1756587512450,7.7,200.43,200.37,2.00781664]
[1756587512650,7.7,200.43,200.39,2.00781664]
[1756587512848,7.7,200.43,200.4,7.69]
[1756587513050,7.7,200.43,200.39,2.00781664]
[1756587513453,7.7,200.43,200.4,7.69]
[1756587514455,7.7,200.43,200.39,2.00781664]
[1756587515159,7.7,200.43,200.4,7.69]
[1756587523567,7.7,200.43,200.39,2.00781664]
[1756587523763,7.7,200.43,200.4,7.48]
[1756587524065,7.7,200.43,200.39,2.00781664]
[1756587524267,7.7,200.43,200.4,7.48]
[1756587525067,2.00781664,200.45,200.4,7.48]
[1756587526562,7.35,200.44,200.4,7.48]
[1756587526967,2.00781664,200.45,200.4,7.48]
[1756587527368,7.35,200.44,200.4,7.48]
[1756587528268,7.35,200.47,200.43,2.00781664]
[1756587528465,2.00781664,200.49,200.43,2.00781664]
[1756587529263,7.35,200.47,200.44,7.48]
[1756587530061,7.35,200.47,200.43,2.00781664]
[1756587530870,7.35,200.47,200.44,7.48]
[1756587531072,7.35,200.47,200.43,2.00781664]
[1756587531372,7.35,200.47,200.44,7.48]
[1756587531765,7.35,200.47,200.43,2.00781664]
[1756587532572,7.35,200.47,200.44,7.48]
[1756587532873,2.00781664,200.49,200.43,2.00781664]
[1756587533071,2.00781664,200.49,200.44,7.48]
[1756587533271,9.35781664,200.49,200.44,7.48]
[1756587533869,2.00781664,200.49,200.43,2.00781664]
[1756587534071,9.35781664,200.49,200.44,7.48]
[1756587534271,2.00781664,200.49,200.43,2.00781664]
[1756587534471,9.35781664,200.49,200.44,7.48]
[1756587534672,2.00781664,200.49,200.43,2.00781664]
[1756587534971,2.00781664,200.49,200.44,7.48]
[1756587535367,2.00781664,200.49,200.43,2.00781664]
[1756587535675,2.00781664,200.51,200.45,2.00781664]
[1756587535869,7.35,200.52,200.47,2.00781664]
[1756587536068,9.35781664,200.53,200.47,9.48781664]
[1756587536268,7.35,200.53,200.47,9.48781664]
[1756587536467,2.00781664,200.52,200.47,9.48781664]
[1756587536870,7.35,200.51,200.47,9.48781664]
[1756587537175,7.35,200.51,200.48,7.48]
[1756587538076,7.35,200.51,200.47,2.00781664]
[1756587539374,7.35,200.51,200.48,7.48]
[1756587539972,7.35,200.51,200.47,2.00781664]
[1756587540679,7.35,200.52,200.48,7.48]
[1756587540876,335.36,200.54,200.48,7.48]
[1756587541080,7.35,200.52,200.47,2.00781664]
[1756587541677,7.35,200.52,200.5,7.48]
[1756587543686,7.35,200.53,200.49,2.00781664]
[1756587543886,7.35,200.6,200.52,7.48]
[1756587544188,121.04,200.59,200.53,2.00781664]
[1756587544384,121.04,200.59,200.53,9.48781664]
[1756587544385,7.35,200.58,200.53,9.48781664]
[1756587544581,121.04,200.59,200.53,2.00781664]
[1756587544981,121.04,200.59,200.53,9.48781664]
[1756587544982,128.39,200.59,200.53,9.48781664]
[1756587545685,7.35,200.59,200.53,9.48781664]
[1756587546082,7.35,200.59,200.53,7.48]
[1756587546282,7.35,200.59,200.54,2.00781664]
[1756587546480,123.04781664,200.6,200.54,2.00781664]
[1756587546881,7.35,200.59,200.54,2.00781664]
[1756587547189,123.04781664,200.6,200.54,2.00781664]
[1756587547383,7.56,200.59,200.54,2.00781664]
[1756587547680,130.58781664,200.6,200.54,10.02781664]
[1756587548989,7.56,200.6,200.54,10.02781664]
[1756587549289,7.56,200.6,200.57,8.02]
[1756587549493,7.56,200.61,200.57,8.02]
[1756587549691,123.00781664,200.62,200.57,8.02]
[1756587549986,7.56,200.61,200.57,8.02]
[1756587550190,2.00781664,200.62,200.57,8.02]
[1756587550385,123.00781664,200.62,200.57,8.02]
[1756587552191,7.56,200.61,200.57,8.02]
[1756587552392,123.00781664,200.62,200.57,8.02]
[1756587552694,7.56,200.61,200.57,8.02]
[1756587552988,123.00781664,200.62,200.57,8.02]
[1756587553384,7.56,200.61,200.57,8.02]
[1756587553892,123.00781664,200.62,200.57,8.02]
[1756587554086,7.56,200.61,200.57,8.02]
[1756587555393,123.00781664,200.62,200.57,8.02]
[1756587555590,7.56,200.61,200.56,2.00781664]
[1756587555993,7.56,200.61,200.57,8.02]
[1756587556297,123.00781664,200.62,200.57,8.02]
[1756587556796,7.56,200.61,200.57,8.02]
[1756587557294,130.56781664,200.62,200.56,10.02781664]
[1756587559098,123.00781664,200.62,200.56,10.02781664]
[1756587559300,9.56781664,200.6,200.49,8.02]
[1756587559598,9.56781664,200.6,200.54,2.00781664]
[1756587563799,9.56781664,200.6,200.53,8.02]
[1756587564097,7.56,200.59,200.55,10.02781664]
[1756587564298,2.00781664,200.6,200.55,10.02781664]
[1756587564498,2.00781664,200.6,200.56,8.02]
[1756587564694,7.56,200.59,200.56,8.02]
[1756587564891,2.00781664,200.6,200.56,10.02781664]
[1756587565094,7.56,200.59,200.56,10.02781664]
[1756587567700,7.56,200.59,200.57,8.02]
[1756587569898,7.56,200.61,200.57,8.02]
[1756587570098,122.94781664,200.62,200.57,8.02]
[1756587570401,7.56,200.61,200.57,8.02]
[1756587570592,122.94781664,200.62,200.57,8.02]
[1756587571502,7.56,200.61,200.57,8.02]
[1756587571801,122.94781664,200.62,200.57,8.02]
[1756587572001,7.56,200.61,200.57,8.02]
[1756587572993,122.94781664,200.62,200.57,8.02]
[1756587573198,7.56,200.61,200.57,8.02]
[1756587573497,122.94781664,200.62,200.57,8.02]
[1756587574000,7.56,200.61,200.57,8.02]
[1756587574194,122.94781664,200.62,200.57,8.02]
[1756587574400,2.00781664,200.62,200.57,8.02]
[1756587574596,122.94781664,200.62,200.57,8.02]
[1756587574996,7.56,200.61,200.57,8.02]
[1756587575197,122.94781664,200.62,200.57,8.02]
[1756587575396,7.56,200.61,200.57,8.02]
[1756587575900,122.94781664,200.62,200.57,8.02]
[1756587576098,7.56,200.61,200.57,8.02]
[1756587576297,122.94781664,200.62,200.57,8.02]
[1756587576509,7.56,200.61,200.57,8.02]
[1756587577005,122.94781664,200.62,200.57,8.02]
[1756587577400,8.01,200.61,200.57,8.02]
[1756587577598,122.94781664,200.62,200.57,8.02]
[1756587577798,8.01,200.61,200.57,8.02]
[1756587578306,2.00781664,200.61,200.57,8.02]
[1756587578502,8.01,200.6,200.57,8.02]
[1756587578907,2.00781664,200.61,200.57,8.02]
[1756587579310,8.01,200.6,200.57,8.02]
[1756587579607,2.00781664,200.61,200.57,8.02]
[1756587579808,8.01,200.6,200.57,8.02]
[1756587580214,8.01,200.6,200.48,54.82667482]
[1756587580215,8.01,200.69,200.59,2.00781664]
[1756587580401,335.06,200.76,200.6,7.72]
[1756587580402,2.00781664,200.66,200.6,7.72]
[1756587580604,8.01,200.66,200.61,2.00781664]
[1756587580805,6.40242063,200.72,200.63,2.00781664]
[1756587580806,8.01,200.67,200.63,2.00781664]
[1756587581011,8.01,200.67,200.64,7.72]
[1756587581811,34.52,200.69,200.65,2.00781664]
[1756587582201,34.52,200.69,200.66,7.72]
[1756587582505,42.53,200.69,200.66,7.72]
[1756587582908,8.01,200.71,200.68,7.72]
[1756587586514,120.9,200.74,200.66,7.72]
[1756587587113,8.01,200.73,200.66,7.72]
[1756587592121,8.01,200.73,200.66,10.84819083]
[1756587593316,120.9,200.74,200.66,10.84819083]
[1756587593515,8.01,200.73,200.66,10.84819083]
[1756587593721,120.9,200.74,200.66,10.84819083]
[1756587593920,8.01,200.73,200.66,10.84819083]
[1756587594121,120.9,200.74,200.66,10.84819083]
[1756587594520,8.01,200.73,200.66,10.84819083]
[1756587594722,120.9,200.74,200.66,10.84819083]
[1756587594922,8.01,200.73,200.66,10.84819083]
[1756587595632,8.01,200.73,200.66,7.72]
[1756587600334,8.01,200.73,200.64,3.12819083]
[1756587600537,8.01,200.73,200.63,10.84819083]
[1756587600738,8.01,200.73,200.64,7.72]
[1756587607546,2.00239401,200.72,200.66,2.00239401]
[1756587608042,7.98,200.67,200.57,7.36]
[1756587608247,9.98239401,200.63,200.57,7.36]
[1756587608448,9.98239401,200.63,200.57,9.36239401]
[1756587611545,9.98239401,200.63,200.52,335.04]
[1756587611546,7.98,200.63,200.54,7.36]
[1756587613546,3.13201576,200.61,200.54,7.36]
[1756587613746,7.98,200.6,200.54,7.36]
[1756587613943,7.98,200.6,200.51,7.36]
[1756587614947,3.13201576,200.58,200.47,3.13201576]
[1756587615253,7.98,200.57,200.48,7.36]
[1756587633263,2.00569656,200.55,200.49,2.00569656]
[1756587633459,9.98569656,200.55,200.48,7.36]
[1756587633661,9.98569656,200.55,200.48,9.36569656]
[1756587639071,9.98569656,200.55,200.48,7.36]
[1756587639269,9.98569656,200.55,200.49,2.00569656]
[1756587640470,8.08,200.54,200.51,7.56]
[1756587642265,8.08,200.54,200.49,2.00569656]
[1756587642671,8.08,200.54,200.5,7.56]
[1756587642871,8.08,200.54,200.49,2.00569656]
[1756587643372,8.08,200.54,200.5,7.56]
[1756587643671,8.08,200.54,200.49,2.00569656]
[1756587644368,8.08,200.54,200.5,7.56]
[1756587644568,8.08,200.54,200.49,2.00569656]
[1756587644769,8.08,200.54,200.5,7.56]
[1756587644970,8.08,200.54,200.49,2.00569656]
[1756587645476,2.00569656,200.55,200.49,2.00569656]
[1756587646171,8.08,200.54,200.49,9.56569656]
[1756587646372,2.00569656,200.55,200.49,2.00569656]
[1756587646971,8.08,200.54,200.49,9.56569656]
[1756587647571,2.00569656,200.55,200.49,2.00569656]
[1756587647771,10.08569656,200.55,200.49,9.56569656]
[1756587648168,8.08,200.66,200.51,2.00569656]
[1756587648472,8.08,200.57,200.53,2.00569656]
[1756587648670,8.08,200.57,200.54,7.56]
[1756587648976,8.08,200.57,200.53,2.00569656]
[1756587649174,8.08,200.57,200.54,7.56]
[1756587649369,8.08,200.57,200.53,2.00569656]
[1756587649569,8.08,200.57,200.54,7.56]
[1756587649774,8.08,200.57,200.53,2.00569656]
[1756587649974,8.08,200.57,200.54,7.56]
[1756587650378,2.00569656,200.58,200.54,7.56]
[1756587650776,8.08,200.57,200.54,7.56]
[1756587654280,8.08,200.57,200.53,2.00569656]
[1756587654579,2.00569656,200.58,200.53,9.56569656]
[1756587655377,2.00569656,200.58,200.54,7.56]
[1756587656580,8.08,200.57,200.54,7.56]
[1756587656879,8.08,200.58,200.54,7.56]
[1756587657180,2.00569656,200.59,200.54,7.56]
[1756587657476,8.08,200.58,200.54,7.56]